[Event "January 2 Late 2024"]
[Site "https://www.chess.com"]
[Date "2024.01.02"]
[Round "3"]
[White "Przybylski, Wojciech"]
[Black "Klukin, Kirill"]
[Result "0-1"]
[Board "46"]
[TimeControl "180+1"]
[WhiteFideId "1117599"]
[BlackFideId "24199273"]
[WhiteElo "2537"]
[BlackElo "2826"]
[WhiteTeam "POL"]
[BlackTeam "RUS"]
[WhiteClock "0:00:05"]
[BlackClock "0:00:12"]

1. e4 {[%clk 0:03:00]}  c5 {[%clk 0:02:59]} 2. Nf3 {[%clk 0:03:00]}  g6 {[%clk 0:02:59]} 3. c3 {[%clk 0:02:57]}  Bg7 {[%clk 0:02:58]} 4. Bc4 {[%clk 0:02:51]}  e6 {[%clk 0:02:56]} 5. O-O {[%clk 0:02:50]}  Ne7 {[%clk 0:02:55]} 6. e5 {[%clk 0:02:48]}  Nbc6 {[%clk 0:02:47]} 7. d4 {[%clk 0:02:47]}  cxd4 {[%clk 0:02:48]} 8. cxd4 {[%clk 0:02:47]}  d6 {[%clk 0:02:49]} 9. Qe2 {[%clk 0:02:44]}  O-O {[%clk 0:02:44]} 10. Rd1 {[%clk 0:02:43]}  a6 {[%clk 0:02:42]} 11. a4 {[%clk 0:02:39]}  Nd5 {[%clk 0:02:35]} 12. Na3 {[%clk 0:02:18]}  Qc7 {[%clk 0:02:24]} 13. Re1 {[%clk 0:02:16]}  Na5 {[%clk 0:02:16]} 14. Bd3 {[%clk 0:01:57]}  Nb4 {[%clk 0:02:13]} 15. Be4 {[%clk 0:01:43]}  d5 {[%clk 0:02:07]} 16. Bd3 {[%clk 0:01:33]}  Nxd3 {[%clk 0:02:03]} 17. Qxd3 {[%clk 0:01:32]}  Bd7 {[%clk 0:02:01]} 18. Nc2 {[%clk 0:01:23]}  Qc4 {[%clk 0:01:52]} 19. Qxc4 {[%clk 0:01:16]}  Nxc4 {[%clk 0:01:43]} 20. b3 {[%clk 0:01:12]}  Na5 {[%clk 0:01:43]} 21. Rb1 {[%clk 0:01:12]}  Rfc8 {[%clk 0:01:43]} 22. Nb4 {[%clk 0:01:05]}  b5 {[%clk 0:01:37]} 23. axb5 {[%clk 0:01:02]}  Bxb5 {[%clk 0:01:38]} 24. Bd2 {[%clk 0:00:59]}  Nc6 {[%clk 0:01:35]} 25. Nxc6 {[%clk 0:00:56]}  Rxc6 {[%clk 0:01:35]} 26. Rec1 {[%clk 0:00:47]}  Rb6 {[%clk 0:01:23]} 27. Ba5 {[%clk 0:00:46]}  Rb7 {[%clk 0:01:23]} 28. Rc7 {[%clk 0:00:42]}  Rxc7 {[%clk 0:01:19]} 29. Bxc7 {[%clk 0:00:42]}  Rc8 {[%clk 0:01:20]} 30. Bd6 {[%clk 0:00:38]}  Bf8 {[%clk 0:00:54]} 31. Bc5 {[%clk 0:00:35]}  Bd3 {[%clk 0:00:24]} 32. Rc1 {[%clk 0:00:29]}  Rb8 {[%clk 0:00:24]} 33. b4 {[%clk 0:00:28]}  Bb5 {[%clk 0:00:22]} 34. Ra1 {[%clk 0:00:23]}  h6 {[%clk 0:00:21]} 35. Nd2 {[%clk 0:00:20]}  Bg7 {[%clk 0:00:21]} 36. f4 {[%clk 0:00:19]}  f6 {[%clk 0:00:20]} 37. Kf2 {[%clk 0:00:18]}  g5 {[%clk 0:00:21]} 38. g3 {[%clk 0:00:18]}  Rb7 {[%clk 0:00:19]} 39. Ke3 {[%clk 0:00:18]}  gxf4+ {[%clk 0:00:19]} 40. gxf4 {[%clk 0:00:18]}  fxe5 {[%clk 0:00:20]} 41. fxe5 {[%clk 0:00:18]}  Rf7 {[%clk 0:00:20]} 42. Nf3 {[%clk 0:00:18]}  Rf5 {[%clk 0:00:17]} 43. h4 {[%clk 0:00:18]}  Kf7 {[%clk 0:00:15]} 44. Rg1 {[%clk 0:00:18]}  Be8 {[%clk 0:00:05]} 45. Rg4 {[%clk 0:00:17]}  Kg8 {[%clk 0:00:05]} 46. Rg3 {[%clk 0:00:15]}  Bh5 {[%clk 0:00:05]} 47. Nd2 {[%clk 0:00:14]}  Kf7 {[%clk 0:00:05]} 48. Bd6 {[%clk 0:00:13]}  Bg6 {[%clk 0:00:06]} 49. Bc5 {[%clk 0:00:13]}  Bh5 {[%clk 0:00:05]} 50. Bd6 {[%clk 0:00:12]}  Bd1 {[%clk 0:00:06]} 51. Bc5 {[%clk 0:00:12]}  h5 {[%clk 0:00:06]} 52. Kd3 {[%clk 0:00:09]}  Bh6 {[%clk 0:00:05]} 53. Rh3 {[%clk 0:00:04]}  Bg4 {[%clk 0:00:05]} 54. Rg3 {[%clk 0:00:04]}  Kg6 {[%clk 0:00:05]} 55. Be7 {[%clk 0:00:02]}  Bf4 {[%clk 0:00:05]} 56. Rg2 {[%clk 0:00:02]}  Rf7 {[%clk 0:00:05]} 57. Bd6 {[%clk 0:00:01]}  Bh6 {[%clk 0:00:05]} 58. Bc5 {[%clk 0:00:02]}  Rf5 {[%clk 0:00:04]} 59. Rg1 {[%clk 0:00:02]}  Bf4 {[%clk 0:00:04]} 60. Rg2 {[%clk 0:00:02]}  Kf7 {[%clk 0:00:04]} 61. Nb3 {[%clk 0:00:02]}  Bh6 {[%clk 0:00:04]} 62. Nd2 {[%clk 0:00:02]}  Bxd2 {[%clk 0:00:04]} 63. Kxd2 {[%clk 0:00:02]}  Kg6 {[%clk 0:00:05]} 64. Ke1 {[%clk 0:00:02]}  Rf3 {[%clk 0:00:04]} 65. Rf2 {[%clk 0:00:02]}  Re3+ {[%clk 0:00:03]} 66. Kf1 {[%clk 0:00:02]}  Bf5 {[%clk 0:00:03]} 67. Rg2+ {[%clk 0:00:02]}  Kf7 {[%clk 0:00:03]} 68. Kf2 {[%clk 0:00:02]}  Re4 {[%clk 0:00:04]} 69. Kg3 {[%clk 0:00:02]}  Rg4+ {[%clk 0:00:04]} 70. Kf3 {[%clk 0:00:03]}  Rxh4 {[%clk 0:00:05]} 71. Rg5 {[%clk 0:00:02]}  Rh3+ {[%clk 0:00:03]} 72. Kg2 {[%clk 0:00:02]}  Rh4 {[%clk 0:00:04]} 73. Kg3 {[%clk 0:00:02]}  Rh1 {[%clk 0:00:04]} 74. Kg2 {[%clk 0:00:02]}  Be4+ {[%clk 0:00:05]} 75. Kf2 {[%clk 0:00:02]}  h4 {[%clk 0:00:06]} 76. Rh5 {[%clk 0:00:02]}  h3 {[%clk 0:00:06]} 77. Kg3 {[%clk 0:00:02]}  Bf5 {[%clk 0:00:05]} 78. Rh4 {[%clk 0:00:02]}  Rg1+ {[%clk 0:00:05]} 79. Kf2 {[%clk 0:00:02]}  Rg2+ {[%clk 0:00:06]} 80. Kf3 {[%clk 0:00:03]}  Rg6 {[%clk 0:00:06]} 81. Kf4 {[%clk 0:00:03]}  Kg7 {[%clk 0:00:06]} 82. Be7 {[%clk 0:00:02]}  Kf7 {[%clk 0:00:07]} 83. Bf6 {[%clk 0:00:03]}  Ke8 {[%clk 0:00:07]} 84. Rh8+ {[%clk 0:00:03]}  Kd7 {[%clk 0:00:07]} 85. Rh7+ {[%clk 0:00:03]}  Kc6 {[%clk 0:00:08]} 86. Rh8 {[%clk 0:00:03]}  Kb5 {[%clk 0:00:08]} 87. Rb8+ {[%clk 0:00:03]}  Kc4 {[%clk 0:00:09]} 88. Rh8 {[%clk 0:00:03]}  Kxd4 {[%clk 0:00:09]} 89. b5 {[%clk 0:00:03]}  axb5 {[%clk 0:00:10]} 90. Be7 {[%clk 0:00:03]}  Rg4+ {[%clk 0:00:10]} 91. Kf3 {[%clk 0:00:03]}  Rg7 {[%clk 0:00:10]} 92. Bd6 {[%clk 0:00:03]}  Rf7 {[%clk 0:00:06]} 93. Rh4+ {[%clk 0:00:03]}  Be4+ {[%clk 0:00:06]} 94. Kg3 {[%clk 0:00:03]}  Rf3+ {[%clk 0:00:07]} 95. Kh2 {[%clk 0:00:03]}  Kc3 {[%clk 0:00:06]} 96. Rh8 {[%clk 0:00:03]}  b4 {[%clk 0:00:07]} 97. Rb8 {[%clk 0:00:03]}  Bf5 {[%clk 0:00:07]} 98. Bxb4+ {[%clk 0:00:02]}  Kd3 {[%clk 0:00:07]} 99. Bd6 {[%clk 0:00:02]}  Rf2+ {[%clk 0:00:08]} 100. Kg1 {[%clk 0:00:02]}  Rg2+ {[%clk 0:00:08]} 101. Kh1 {[%clk 0:00:03]}  Be4 {[%clk 0:00:08]} 102. Rb3+ {[%clk 0:00:03]}  Kc4 {[%clk 0:00:09]} 103. Rxh3 {[%clk 0:00:03]}  d4 {[%clk 0:00:06]} 104. Rh4 {[%clk 0:00:02]}  Rg4+ {[%clk 0:00:06]} 105. Kh2 {[%clk 0:00:02]}  Rxh4+ {[%clk 0:00:07]} 106. Kg3 {[%clk 0:00:03]}  Rh7 {[%clk 0:00:07]} 107. Be7 {[%clk 0:00:03]}  Kd5 {[%clk 0:00:08]} 108. Bf6 {[%clk 0:00:03]}  d3 {[%clk 0:00:08]} 109. Kf2 {[%clk 0:00:03]}  Rh2+ {[%clk 0:00:08]} 110. Ke3 {[%clk 0:00:03]}  Re2+ {[%clk 0:00:08]} 111. Kf4 {[%clk 0:00:03]}  d2 {[%clk 0:00:09]} 112. Bg5 {[%clk 0:00:03]}  d1=Q {[%clk 0:00:09]} 113. Bh4 {[%clk 0:00:04]}  Qf1+ {[%clk 0:00:10]} 114. Kg5 {[%clk 0:00:04]}  Rg2+ {[%clk 0:00:10]} 115. Kh6 {[%clk 0:00:04]}  Qf8+ {[%clk 0:00:11]} 116. Kh5 {[%clk 0:00:05]}  Qf7+ {[%clk 0:00:11]} 117. Kh6 {[%clk 0:00:05]}  Qg6# {[%clk 0:00:12]} 0-1

[Event "January 2 Late 2024"]
[Site "https://www.chess.com"]
[Date "2024.01.02"]
[Round "3"]
[White "Sukandar, Irine Kharisma"]
[Black "Pakleza, Zbigniew"]
[Result "1-0"]
[Board "49"]
[TimeControl "180+1"]
[WhiteFideId "7101937"]
[BlackFideId "1119290"]
[WhiteElo "2436"]
[BlackElo "2821"]
[WhiteTeam "INA"]
[BlackTeam "POL"]
[WhiteClock "0:00:15"]
[BlackClock "0:00:04"]

1. d4 {[%clk 0:03:00]}  d6 {[%clk 0:03:00]} 2. e4 {[%clk 0:02:59]}  Nf6 {[%clk 0:03:00]} 3. Nc3 {[%clk 0:02:58]}  c6 {[%clk 0:03:00]} 4. h3 {[%clk 0:02:55]}  b5 {[%clk 0:03:00]} 5. Bd3 {[%clk 0:02:53]}  e5 {[%clk 0:03:00]} 6. Nf3 {[%clk 0:02:49]}  Nbd7 {[%clk 0:02:59]} 7. Be3 {[%clk 0:02:47]}  Be7 {[%clk 0:02:59]} 8. O-O {[%clk 0:02:45]}  O-O {[%clk 0:02:59]} 9. a4 {[%clk 0:02:43]}  b4 {[%clk 0:02:58]} 10. Nb1 {[%clk 0:02:43]}  Re8 {[%clk 0:02:53]} 11. c3 {[%clk 0:02:41]}  bxc3 {[%clk 0:02:48]} 12. bxc3 {[%clk 0:02:40]}  Bf8 {[%clk 0:02:48]} 13. Nbd2 {[%clk 0:02:40]}  a5 {[%clk 0:02:30]} 14. Re1 {[%clk 0:02:39]}  Ba6 {[%clk 0:02:29]} 15. Bxa6 {[%clk 0:02:24]}  Rxa6 {[%clk 0:02:30]} 16. dxe5 {[%clk 0:02:20]}  dxe5 {[%clk 0:02:22]} 17. Qe2 {[%clk 0:01:59]}  Ra8 {[%clk 0:02:15]} 18. Rab1 {[%clk 0:01:58]}  Nc5 {[%clk 0:02:02]} 19. Bxc5 {[%clk 0:01:48]}  Bxc5 {[%clk 0:02:03]} 20. Nc4 {[%clk 0:01:48]}  Qc7 {[%clk 0:01:58]} 21. Red1 {[%clk 0:01:44]}  g6 {[%clk 0:01:51]} 22. Ng5 {[%clk 0:01:18]}  h6 {[%clk 0:01:29]} 23. Nf3 {[%clk 0:01:17]}  Kg7 {[%clk 0:01:30]} 24. Rb2 {[%clk 0:01:17]}  Nh5 {[%clk 0:01:22]} 25. Rbd2 {[%clk 0:00:58]}  Nf4 {[%clk 0:01:08]} 26. Qf1 {[%clk 0:00:58]}  Re7 {[%clk 0:01:04]} 27. g3 {[%clk 0:00:58]}  Nh5 {[%clk 0:01:03]} 28. Kg2 {[%clk 0:00:56]}  Rb8 {[%clk 0:01:01]} 29. Ne1 {[%clk 0:00:54]}  Rb3 {[%clk 0:00:54]} 30. Nd3 {[%clk 0:00:53]}  Ba7 {[%clk 0:00:54]} 31. Ndxe5 {[%clk 0:00:48]}  Rxe5 {[%clk 0:00:33]} 32. Rd7 {[%clk 0:00:48]}  Qb8 {[%clk 0:00:14]} 33. Rd8 {[%clk 0:00:39]}  Re7 {[%clk 0:00:02]} 34. Rxb8 {[%clk 0:00:37]}  Bxb8 {[%clk 0:00:03]} 35. Qd3 {[%clk 0:00:28]}  Nf6 {[%clk 0:00:02]} 36. Nxa5 {[%clk 0:00:25]}  Rb2 {[%clk 0:00:02]} 37. Nxc6 {[%clk 0:00:24]}  Reb7 {[%clk 0:00:01]} 38. Nxb8 {[%clk 0:00:21]}  Rxb8 {[%clk 0:00:02]} 39. e5 {[%clk 0:00:21]}  Ng8 {[%clk 0:00:02]} 40. Qd4 {[%clk 0:00:21]}  Kh7 {[%clk 0:00:02]} 41. a5 {[%clk 0:00:20]}  R2b7 {[%clk 0:00:01]} 42. a6 {[%clk 0:00:19]}  Re7 {[%clk 0:00:01]} 43. Ra1 {[%clk 0:00:18]}  Ra8 {[%clk 0:00:02]} 44. Qc5 {[%clk 0:00:17]}  h5 {[%clk 0:00:02]} 45. a7 {[%clk 0:00:16]}  Rd7 {[%clk 0:00:02]} 46. Qb6 {[%clk 0:00:16]}  Ne7 {[%clk 0:00:02]} 47. Qb8 {[%clk 0:00:15]}  Rd8 {[%clk 0:00:02]} 48. Qxd8 {[%clk 0:00:15]}  Rxd8 {[%clk 0:00:03]} 49. a8=Q {[%clk 0:00:16]}  Rxa8 {[%clk 0:00:04]} 50. Rxa8 {[%clk 0:00:16]}  Nc6 {[%clk 0:00:04]} 51. Rc8 {[%clk 0:00:15]}  Nxe5 {[%clk 0:00:05]} 52. c4 {[%clk 0:00:15]}  Kg7 {[%clk 0:00:05]} 53. c5 {[%clk 0:00:15]}  Kf6 {[%clk 0:00:06]} 54. c6 {[%clk 0:00:15]}  Ke7 {[%clk 0:00:07]} 55. c7 {[%clk 0:00:15]}  Kd7 {[%clk 0:00:04]} 56. Re8 {[%clk 0:00:15]} 1-0

[Event "January 2 Late 2024"]
[Site "https://www.chess.com"]
[Date "2024.01.02"]
[Round "3"]
[White "Cabarkapa, Novak"]
[Black "Osmonbekov, Talaibek"]
[Result "1-0"]
[Board "51"]
[TimeControl "180+1"]
[WhiteFideId "943746"]
[BlackFideId "2017253"]
[WhiteElo "2818"]
[BlackElo "2307"]
[WhiteTeam "SRB"]
[BlackTeam "USA"]
[WhiteClock "0:00:16"]
[BlackClock "0:00:00"]

1. d4 {[%clk 0:03:00]}  e6 {[%clk 0:02:59]} 2. Nc3 {[%clk 0:03:00]}  f5 {[%clk 0:03:00]} 3. e4 {[%clk 0:03:00]}  fxe4 {[%clk 0:03:00]} 4. Nxe4 {[%clk 0:03:00]}  Nf6 {[%clk 0:03:01]} 5. Nxf6+ {[%clk 0:03:00]}  Qxf6 {[%clk 0:03:00]} 6. Nf3 {[%clk 0:03:00]}  Nc6 {[%clk 0:02:52]} 7. Bd3 {[%clk 0:02:48]}  d6 {[%clk 0:02:44]} 8. Bg5 {[%clk 0:02:43]}  Qf7 {[%clk 0:02:44]} 9. Qe2 {[%clk 0:02:43]}  Be7 {[%clk 0:02:39]} 10. Bd2 {[%clk 0:02:40]}  Bd7 {[%clk 0:02:33]} 11. a3 {[%clk 0:02:37]}  O-O-O {[%clk 0:02:26]} 12. O-O {[%clk 0:02:35]}  h6 {[%clk 0:02:25]} 13. b4 {[%clk 0:02:35]}  Rde8 {[%clk 0:02:19]} 14. b5 {[%clk 0:02:35]}  Nd8 {[%clk 0:02:18]} 15. a4 {[%clk 0:02:35]}  g5 {[%clk 0:02:17]} 16. a5 {[%clk 0:02:34]}  g4 {[%clk 0:02:01]} 17. Ne1 {[%clk 0:02:34]}  Bg5 {[%clk 0:02:01]} 18. b6 {[%clk 0:02:29]}  a6 {[%clk 0:01:52]} 19. bxc7 {[%clk 0:02:13]}  Kxc7 {[%clk 0:01:47]} 20. f4 {[%clk 0:02:07]}  gxf3 {[%clk 0:01:40]} 21. Nxf3 {[%clk 0:02:07]}  Bxd2 {[%clk 0:01:33]} 22. Qxd2 {[%clk 0:02:04]}  Qg7 {[%clk 0:01:32]} 23. Rab1 {[%clk 0:01:59]}  Bc6 {[%clk 0:01:29]} 24. c4 {[%clk 0:01:54]}  Bxf3 {[%clk 0:01:26]} 25. Rxf3 {[%clk 0:01:55]}  Qxd4+ {[%clk 0:01:25]} 26. Kh1 {[%clk 0:01:55]}  Rhf8 {[%clk 0:01:12]} 27. Re3 {[%clk 0:01:55]}  e5 {[%clk 0:01:03]} 28. Qe2 {[%clk 0:01:53]}  Qf4 {[%clk 0:00:48]} 29. Be4 {[%clk 0:01:43]}  Rf6 {[%clk 0:00:41]} 30. h3 {[%clk 0:01:41]}  Ref8 {[%clk 0:00:41]} 31. Rf3 {[%clk 0:01:28]}  Qg5 {[%clk 0:00:38]} 32. Qb2 {[%clk 0:01:17]}  Rxf3 {[%clk 0:00:25]} 33. Qb6+ {[%clk 0:01:18]}  Kd7 {[%clk 0:00:25]} 34. Bxf3 {[%clk 0:01:11]}  Rxf3 {[%clk 0:00:25]} 35. gxf3 {[%clk 0:01:12]}  Qg3 {[%clk 0:00:25]} 36. Qb2 {[%clk 0:01:10]}  Qxh3+ {[%clk 0:00:24]} 37. Kg1 {[%clk 0:01:06]}  Qh4 {[%clk 0:00:17]} 38. Qg2 {[%clk 0:01:01]}  Qd4+ {[%clk 0:00:16]} 39. Kh2 {[%clk 0:01:00]}  Qxc4 {[%clk 0:00:13]} 40. Qg7+ {[%clk 0:00:58]}  Kc8 {[%clk 0:00:12]} 41. Rg1 {[%clk 0:00:29]}  Qf4+ {[%clk 0:00:11]} 42. Rg3 {[%clk 0:00:28]}  Qd2+ {[%clk 0:00:07]} 43. Kh3 {[%clk 0:00:28]}  Qf4 {[%clk 0:00:07]} 44. Qh7 {[%clk 0:00:23]}  d5 {[%clk 0:00:00]} 45. Qc2+ {[%clk 0:00:16]} 1-0

[Event "January 2 Late 2024"]
[Site "https://www.chess.com"]
[Date "2024.01.02"]
[Round "3"]
[White "Popov, Konstantin"]
[Black "Korchynskyi, Mykola"]
[Result "0-1"]
[Board "54"]
[TimeControl "180+1"]
[WhiteFideId "34137910"]
[BlackFideId "34138005"]
[WhiteElo "2917"]
[BlackElo "2572"]
[WhiteTeam "FID"]
[BlackTeam "UKR"]
[WhiteClock "0:00:01"]
[BlackClock "0:00:04"]

1. e4 {[%clk 0:03:00]}  e6 {[%clk 0:02:57]} 2. d4 {[%clk 0:03:00]}  d5 {[%clk 0:02:48]} 3. Nc3 {[%clk 0:03:01]}  dxe4 {[%clk 0:02:45]} 4. Nxe4 {[%clk 0:03:02]}  Nd7 {[%clk 0:02:46]} 5. Nf3 {[%clk 0:03:02]}  Ngf6 {[%clk 0:02:47]} 6. Bg5 {[%clk 0:03:01]}  Be7 {[%clk 0:02:45]} 7. Nxf6+ {[%clk 0:03:00]}  Bxf6 {[%clk 0:02:41]} 8. Bxf6 {[%clk 0:02:56]}  Nxf6 {[%clk 0:02:42]} 9. Bd3 {[%clk 0:02:53]}  O-O {[%clk 0:02:32]} 10. Qe2 {[%clk 0:02:52]}  b6 {[%clk 0:02:32]} 11. O-O-O {[%clk 0:02:50]}  Bb7 {[%clk 0:02:30]} 12. Ne5 {[%clk 0:02:50]}  Qd5 {[%clk 0:02:29]} 13. Kb1 {[%clk 0:02:49]}  Rad8 {[%clk 0:02:29]} 14. f3 {[%clk 0:02:43]}  c5 {[%clk 0:02:26]} 15. Bc4 {[%clk 0:02:06]}  Qd6 {[%clk 0:02:24]} 16. dxc5 {[%clk 0:01:47]}  Qxc5 {[%clk 0:02:25]} 17. Rxd8 {[%clk 0:01:41]}  Rxd8 {[%clk 0:02:26]} 18. Nxf7 {[%clk 0:01:41]}  Kxf7 {[%clk 0:02:21]} 19. Qxe6+ {[%clk 0:01:41]}  Kg6 {[%clk 0:02:22]} 20. Bd3+ {[%clk 0:01:29]}  Kh6 {[%clk 0:02:03]} 21. a3 {[%clk 0:00:45]}  Bc8 {[%clk 0:01:45]} 22. Qe2 {[%clk 0:00:39]}  g6 {[%clk 0:01:43]} 23. g4 {[%clk 0:00:38]}  Kg7 {[%clk 0:01:39]} 24. h4 {[%clk 0:00:37]}  Re8 {[%clk 0:01:39]} 25. Qd2 {[%clk 0:00:37]}  Qe3 {[%clk 0:01:38]} 26. Qc3 {[%clk 0:00:35]}  Qe5 {[%clk 0:01:35]} 27. Qd2 {[%clk 0:00:35]}  Nd5 {[%clk 0:01:33]} 28. h5 {[%clk 0:00:30]}  Nf4 {[%clk 0:01:27]} 29. hxg6 {[%clk 0:00:27]}  hxg6 {[%clk 0:01:24]} 30. Be4 {[%clk 0:00:19]}  Bxg4 {[%clk 0:01:07]} 31. Qh2 {[%clk 0:00:19]}  Bh5 {[%clk 0:01:05]} 32. Rg1 {[%clk 0:00:19]}  Qf6 {[%clk 0:00:56]} 33. Qd2 {[%clk 0:00:18]}  Rd8 {[%clk 0:00:54]} 34. Qe1 {[%clk 0:00:18]}  Ne6 {[%clk 0:00:50]} 35. Qb4 {[%clk 0:00:17]}  Nc5 {[%clk 0:00:48]} 36. a4 {[%clk 0:00:15]}  Nxe4 {[%clk 0:00:48]} 37. fxe4 {[%clk 0:00:16]}  Rd1+ {[%clk 0:00:44]} 38. Rxd1 {[%clk 0:00:15]}  Bxd1 {[%clk 0:00:45]} 39. a5 {[%clk 0:00:15]}  g5 {[%clk 0:00:37]} 40. Qd2 {[%clk 0:00:14]}  Bf3 {[%clk 0:00:36]} 41. Qd7+ {[%clk 0:00:13]}  Kh6 {[%clk 0:00:33]} 42. a6 {[%clk 0:00:12]}  g4 {[%clk 0:00:16]} 43. Qxa7 {[%clk 0:00:12]}  g3 {[%clk 0:00:16]} 44. Qc7 {[%clk 0:00:11]}  g2 {[%clk 0:00:16]} 45. Qh2+ {[%clk 0:00:12]}  Kg7 {[%clk 0:00:15]} 46. a7 {[%clk 0:00:12]}  Bxe4 {[%clk 0:00:14]} 47. Qg3+ {[%clk 0:00:11]}  Kh6 {[%clk 0:00:06]} 48. Qh2+ {[%clk 0:00:10]}  Kg5 {[%clk 0:00:06]} 49. Qg3+ {[%clk 0:00:11]}  Kh5 {[%clk 0:00:07]} 50. Qh3+ {[%clk 0:00:08]}  Qh4 {[%clk 0:00:06]} 51. Qe6 {[%clk 0:00:03]}  g1=Q+ {[%clk 0:00:05]} 52. Ka2 {[%clk 0:00:03]}  Qg6 {[%clk 0:00:04]} 53. Qe5+ {[%clk 0:00:02]}  Kh6 {[%clk 0:00:03]} 54. Qh8+ {[%clk 0:00:02]}  Qh7 {[%clk 0:00:03]} 55. Qf8+ {[%clk 0:00:01]}  Qg7 {[%clk 0:00:03]} 56. Qd6+ {[%clk 0:00:02]}  Qhf6 {[%clk 0:00:02]} 57. Qh2+ {[%clk 0:00:02]}  Kg6 {[%clk 0:00:02]} 58. Qb8 {[%clk 0:00:02]}  Qff7+ {[%clk 0:00:02]} 59. b3 {[%clk 0:00:02]}  Qxa7+ {[%clk 0:00:03]} 60. Qxa7 {[%clk 0:00:02]}  Qxa7+ {[%clk 0:00:03]} 61. Kb2 {[%clk 0:00:01]}  Bxc2 {[%clk 0:00:04]} 0-1

[Event "January 2 Late 2024"]
[Site "https://www.chess.com"]
[Date "2024.01.02"]
[Round "3"]
[White "Lobanov, Sergei"]
[Black "Roberson, Peter T"]
[Result "0-1"]
[Board "56"]
[TimeControl "180+1"]
[WhiteFideId "24183750"]
[BlackFideId "412384"]
[WhiteElo "2844"]
[BlackElo "2561"]
[WhiteTeam "FID"]
[BlackTeam "ENG"]
[WhiteClock "0:00:02"]
[BlackClock "0:00:03"]

1. d4 {[%clk 0:03:00]}  Nf6 {[%clk 0:03:00]} 2. c4 {[%clk 0:03:01]}  c5 {[%clk 0:03:00]} 3. d5 {[%clk 0:03:01]}  e6 {[%clk 0:03:01]} 4. Nc3 {[%clk 0:03:01]}  exd5 {[%clk 0:03:01]} 5. cxd5 {[%clk 0:03:02]}  d6 {[%clk 0:03:02]} 6. Nf3 {[%clk 0:03:02]}  g6 {[%clk 0:03:02]} 7. e4 {[%clk 0:03:02]}  Bg7 {[%clk 0:03:02]} 8. Nd2 {[%clk 0:03:02]}  O-O {[%clk 0:03:02]} 9. Be2 {[%clk 0:03:01]}  Nbd7 {[%clk 0:02:58]} 10. O-O {[%clk 0:03:01]}  Qe7 {[%clk 0:02:59]} 11. Re1 {[%clk 0:02:53]}  Ne5 {[%clk 0:02:58]} 12. h3 {[%clk 0:02:52]}  g5 {[%clk 0:02:58]} 13. Nf1 {[%clk 0:02:41]}  g4 {[%clk 0:02:46]} 14. hxg4 {[%clk 0:02:38]}  Bxg4 {[%clk 0:02:47]} 15. Ng3 {[%clk 0:02:37]}  Bd7 {[%clk 0:02:19]} 16. Bg5 {[%clk 0:02:34]}  h6 {[%clk 0:02:17]} 17. Bh4 {[%clk 0:02:33]}  Ng6 {[%clk 0:02:17]} 18. Bxf6 {[%clk 0:02:27]}  Qxf6 {[%clk 0:02:12]} 19. Bg4 {[%clk 0:02:23]}  Bxg4 {[%clk 0:01:45]} 20. Qxg4 {[%clk 0:02:24]}  Ne5 {[%clk 0:01:46]} 21. Qe2 {[%clk 0:02:24]}  c4 {[%clk 0:01:38]} 22. Nf5 {[%clk 0:02:20]}  Nd3 {[%clk 0:01:32]} 23. Reb1 {[%clk 0:02:08]}  Rfe8 {[%clk 0:01:23]} 24. Qg4 {[%clk 0:01:59]}  Rad8 {[%clk 0:01:01]} 25. a4 {[%clk 0:01:57]}  Qg6 {[%clk 0:00:58]} 26. Qf3 {[%clk 0:01:52]}  Be5 {[%clk 0:00:48]} 27. Ra3 {[%clk 0:01:36]}  Kh7 {[%clk 0:00:48]} 28. g3 {[%clk 0:01:37]}  Rg8 {[%clk 0:00:47]} 29. Kf1 {[%clk 0:01:36]}  Rde8 {[%clk 0:00:40]} 30. Ke2 {[%clk 0:01:14]}  Qg5 {[%clk 0:00:37]} 31. Rh1 {[%clk 0:01:11]}  Rg6 {[%clk 0:00:27]} 32. Raa1 {[%clk 0:00:34]}  Nxb2 {[%clk 0:00:20]} 33. Rh5 {[%clk 0:00:34]}  Qf6 {[%clk 0:00:15]} 34. Rah1 {[%clk 0:00:35]}  Bxc3 {[%clk 0:00:07]} 35. Rxh6+ {[%clk 0:00:35]}  Kg8 {[%clk 0:00:08]} 36. Kf1 {[%clk 0:00:09]}  Nd3 {[%clk 0:00:05]} 37. Qh5 {[%clk 0:00:06]}  Rxe4 {[%clk 0:00:03]} 38. Rh7 {[%clk 0:00:02]}  Re1+ {[%clk 0:00:03]} 39. Kg2 {[%clk 0:00:02]}  Rxh1 {[%clk 0:00:04]} 40. Qxh1 {[%clk 0:00:02]}  Ne5 {[%clk 0:00:03]} 41. Rh5 {[%clk 0:00:02]}  Nd3 {[%clk 0:00:02]} 42. Kf1 {[%clk 0:00:02]}  Qe5 {[%clk 0:00:02]} 43. Qh3 {[%clk 0:00:02]}  Qe1+ {[%clk 0:00:01]} 44. Kg2 {[%clk 0:00:03]}  Qxf2+ {[%clk 0:00:02]} 45. Kh1 {[%clk 0:00:03]}  Qe1+ {[%clk 0:00:03]} 46. Kg2 {[%clk 0:00:04]}  Qe2+ {[%clk 0:00:03]} 47. Kh1 {[%clk 0:00:02]}  Nf2+ {[%clk 0:00:03]} 0-1